Cogmind - Beta 11 X10 @@@ ROGUE MODE // 2022.03.14 @ 10:21:00 Player: maxwell Result: Self-destructed Performance ------------- Evolutions (8) 4000 Regions Visited (28) 5600 Robots Destroyed (244) 1220 Value Destroyed (16961) 16961 Prototype IDs (39) 780 Alien Tech Used (0) 0 Bonus (14537) 14537 TOTAL SCORE: 43098 Bonus ------- High Alert Combat Kills 721 Follower Combat Kills 7636 Entered Garrisons 2000 Used RIF Installer 5000 Aligned with FarCom 300 Friendly Fire -1120 Cogmind --------- Core Integrity 916/1450 Matter 226/300 Energy 100/100 System Corruption 11% Temperature Cool (0) Movement Treading (225) Ox1 Location -2/Research Parts ------- > --- POWER (2) -------- (None) > --- PROPULSION (2) --- Biometal Heavy Treads > --- UTILITY (16) ----- Advanced Coolant Injector Huge Storage Unit Advanced Visual Processing Unit Relay Coupler [Swarmer] (63) Relay Coupler [Brawler] (29) Relay Coupler [Duelist] (44) Relay Coupler [Sentry] (35) Relay Coupler [Specialist] (5) Relay Coupler [Hunter] (21) Relay Coupler [Heavy] (12) > --- WEAPON (3) ------- Compact Linear Accelerator > --- INVENTORY (25) --- Improved Fusion Compressor Armored Heavy Treads Biometal Heavy Treads Advanced Force Field Relay Coupler [NC] (49) Relay Coupler [NC] (46) Relay Coupler [Swarmer] (49) Relay Coupler [Brawler] (49) Relay Coupler [Duelist] (44) Relay Coupler [Sentry] (41) Relay Coupler [Sentry] (41) Relay Coupler [Sentry] (40) Relay Coupler [Sentry] (40) Relay Coupler [Sentry] (37) Relay Coupler [Sentry] (41) Relay Coupler [Demolisher] (41) Relay Coupler [Specialist] (38) Relay Coupler [Hunter] (31) Experimental Field Recycling Unit (350) Enhanced Nova Cannon Mini Smartbomb Launcher Advanced Datajack Improved Remote Datajack Peak State ------------ > --- POWER ------------ Light Antimatter Reactor Light Quantum Reactor > --- PROPULSION ------- Biometal Heavy Treads > --- UTILITY ---------- Advanced Coolant Injector Huge Storage Unit Advanced Visual Processing Unit Medium Reflective Plating Advanced Force Field Advanced Remote Shield Relay Coupler [NC] Relay Coupler [Swarmer] Relay Coupler [Brawler] Relay Coupler [Duelist] Relay Coupler [Sentry] Relay Coupler [Specialist] Relay Coupler [Hunter] Relay Coupler [Heavy] Dynamic Insulation System Improved Dynamic Insulation System > --- WEAPON ----------- Cooled Proton Cannon Enhanced Nova Cannon Compact Linear Accelerator > --- INVENTORY -------- Improved Fusion Compressor Biometal Heavy Treads Biometal Heavy Treads Relay Coupler [NC] Relay Coupler [NC] Relay Coupler [Swarmer] Relay Coupler [Brawler] Relay Coupler [Brawler] Relay Coupler [Duelist] Relay Coupler [Sentry] Relay Coupler [Sentry] Relay Coupler [Sentry] Relay Coupler [Sentry] Relay Coupler [Sentry] Relay Coupler [Sentry] Relay Coupler [Demolisher] Relay Coupler [Specialist] Relay Coupler [Hunter] Experimental Field Recycling Unit Mini Smartbomb Launcher Advanced Datajack Improved Remote Datajack Improved Remote Datajack [Rating: 146] Favorites ----------- Power Light Nuclear Core Engine Light Angular Momentum Engine Power Core Light Nuclear Core Reactor Micro Antimatter Reactor Propulsion Light Treads Treads Light Treads Leg Carbon-fiber Leg Wheel Wheel Utility Huge Storage Unit Device Improved Shield Generator Storage Huge Storage Unit Processor Advanced Targeting Computer Hackware Relay Coupler [Sentry] Protection Layered Light Armor Plating Weapon Autogun Energy Gun Small Laser Energy Cannon Cooled Proton Cannon Ballistic Gun Autogun Ballistic Cannon Compact Linear Accelerator Launcher Rocket Launcher Special Weapon Remote Datajack Impact Weapon Great Maul Special Melee Weapon Advanced Datajack Build | -11 -10 -10 -9 -9 -9 -8 -8 -7 -7 -7 -7 -6 -6 -5 -5 -5 -5 -4 -4 -4 -4 -3 -3 -3 -3 -2 -2 -2 ------- Run | Scr Mat Min Mat Min Exi Min Mat Fac Gar Fac Gar Fac Gar Fac Gar Fac Gar Fac Gar Fac Gar Res Gar Res Gar Res Gar Res Slots Evolved 16 | . . . 2 . . . 2 2 . . . 2 . 2 . . . 2 . . . 2 . . . 2 . . Power 1 | . . . . . . . . . . . . 1 . . . . . . . . . . . . . . . . Propulsion . | . . . . . . . . . . . . . . . . . . . . . . . . . . . . . Utility 14 | . . . 1 . . . 2 2 . . . 1 . 2 . . . 2 . . . 2 . . . 2 . . Weapon 1 | . . . 1 . . . . . . . . . . . . . . . . . . . . . . . . . Parts Attached 373 | 6 9 5 13 10 1 2 11 56 27 1 20 7 31 2 22 1 11 9 6 4 3 7 22 2 24 31 28 2 Power 35 | 1 1 . 2 2 . 1 1 4 2 . 1 2 4 . . . 1 1 1 . . 2 1 . 1 6 1 . Engine 11 | 1 1 . 1 2 . . . 3 . . . 1 1 . . . 1 . . . . . . . . . . . Core 12 | . . . 1 . . 1 1 1 2 . 1 . 3 . . . . 1 . . . . . . . 1 . . Reactor 12 | . . . . . . . . . . . . 1 . . . . . . 1 . . 2 1 . 1 5 1 . Propulsion 33 | 2 1 2 1 2 . . 1 5 . . 3 . 3 . . 1 . . . 2 . 2 1 . 2 4 1 . Treads 17 | 2 1 . . . . . . . . . 2 . 1 . . 1 . . . 2 . . 1 . 2 4 1 . Leg 2 | . . . . . . . . . . . . . 2 . . . . . . . . . . . . . . . Wheel 14 | . . 2 1 2 . . 1 5 . . 1 . . . . . . . . . . 2 . . . . . . Hover . | . . . . . . . . . . . . . . . . . . . . . . . . . . . . . Flight . | . . . . . . . . . . . . . . . . . . . . . . . . . . . . . Utility 164 | 1 3 . 3 1 1 . 7 21 14 1 11 5 10 1 9 . 8 4 1 2 3 2 11 . 14 14 16 1 Device 53 | . 1 . 2 . . . 3 8 4 . 2 1 3 . 2 . 1 1 . . 1 . 4 . 4 7 9 . Storage 15 | 1 2 . . . 1 . . 2 2 . 2 . . . 2 . . . . . . . . . 1 2 . . Processor 7 | . . . 1 1 . . 1 1 . . 1 . . . . . . . . . . . . . . 2 . . Hackware 66 | . . . . . . . 2 4 5 1 4 3 6 1 4 . 7 2 1 2 2 2 6 . 8 2 4 . Protection 23 | . . . . . . . 1 6 3 . 2 1 1 . 1 . . 1 . . . . 1 . 1 1 3 1 Artifact . | . . . . . . . . . . . . . . . . . . . . . . . . . . . . . Weapon 141 | 2 4 3 7 5 . 1 2 26 11 . 5 . 14 1 13 . 2 4 4 . . 1 9 2 7 7 10 1 Energy Gun 4 | 1 . . . . . . . . . . . . 1 . . . . . . . . . 1 . . . 1 . Energy Cannon 13 | . . . . . . . . . . . . . . . . . . 2 2 . . . 2 . 1 2 4 . Ballistic Gun 57 | 1 1 1 6 5 . 1 1 17 7 . 3 . 8 . 2 . 1 . . . . 1 . . 2 . . . Ballistic Cannon 3 | . . . . . . . . . . . . . . . . . . . . . . . . . . 1 2 . Launcher 15 | . . 1 1 . . . . 2 1 . . . . . 1 . . 1 1 . . . 3 1 1 1 1 . Special Weapon 31 | . 3 1 . . . . . . 1 . 2 . 5 . 5 . 1 1 1 . . . 3 1 2 2 2 1 Impact Weapon 16 | . . . . . . . 1 7 2 . . . . 1 5 . . . . . . . . . . . . . Slashing Weapon . | . . . . . . . . . . . . . . . . . . . . . . . . . . . . . Piercing Weapon . | . . . . . . . . . . . . . . . . . . . . . . . . . . . . . Special Melee Weapon 2 | . . . . . . . . . . . . . . . . . . . . . . . . . 1 1 . . Unidentified Prototypes 2 | . . . . . . . . . . . . 1 . . . . . . . . . 1 . . . . . . Corrupted Parts 1 | . . . . . . . . . . . . . . . . . . . . . . . . . 1 . . . System Corruption 1 | . . . . . . . . . . . . . . . . . . . . . . . . . 1 . . . Parts Lost 108 | . 3 2 7 3 . 2 6 20 4 . 7 . 14 . . 1 3 . 1 . . 5 4 . 1 10 6 9 Power 19 | . 1 . 2 1 . 1 2 2 . . 1 . 4 . . . 1 . . . . . . . . 2 . 2 Propulsion 13 | . 1 . 1 1 . . 2 2 . . 2 . 2 . . . . . . . . . 1 . . 1 . . Utility 42 | . 1 1 1 . . . . 9 2 . 1 . 3 . . . 1 . 1 . . 5 3 . . 4 5 5 Weapon 34 | . . 1 3 1 . 1 2 7 2 . 3 . 5 . . 1 1 . . . . . . . 1 3 1 2 Highest Loss Streak 9 | . 2 2 2 1 . 1 4 5 1 . 4 . 6 . . 1 2 . 1 . . 2 2 . 1 4 1 9 To Critical Strikes 1 | . . . . . . . . . . . . . 1 . . . . . . . . . . . . . . . Average Slot Usage (%) 88 | . 98 99 94 99 95 87 89 81 75 73 89 95 90 88 97 92 90 87 88 88 88 76 86 86 85 90 84 90 Engine 2 | . 14 14 9 11 11 . . 5 . . . 3 2 . . . 2 5 1 . . . . . . . . . Core 4 | . . . 1 . . 10 8 . 7 7 6 6 6 11 11 11 7 5 5 5 5 2 . . . . . . Reactor 2 | . . . . . . . . . . . . . . . . . . . 3 5 5 6 9 5 8 7 8 7 Treads 5 | . 27 27 . . . . . . . . 9 13 6 . . 4 5 5 5 4 5 3 2 4 4 4 4 4 Leg 1 | . . . . . . . . . . . . . 5 11 11 1 . . . . . . . . . . . . Wheel 2 | . . . 20 21 22 22 17 9 7 7 2 . . . . . . . . . . . . . . . . . Device 6 | . 1 . 14 11 6 . 7 5 5 . 2 3 6 5 8 5 5 5 10 9 . 4 13 4 1 9 11 12 Storage 7 | . 25 27 11 11 10 11 9 6 7 7 7 6 6 5 6 11 10 5 5 5 5 4 4 4 4 5 4 4 Processor 5 | . . . 5 10 11 11 9 7 7 7 12 9 6 5 5 5 5 5 5 5 5 4 4 4 3 3 4 4 Hackware 24 | . . . . . . . 2 19 10 12 17 27 23 23 27 29 30 36 34 36 46 34 32 42 46 45 38 33 Protection 3 | . . . . . . . 7 1 3 7 6 3 4 5 4 5 1 2 5 5 5 1 3 4 4 1 3 7 Energy Cannon 1 | . . . . . . . . . . . . . . . . . . 6 5 5 5 4 8 9 3 3 2 6 Ballistic Gun 9 | . 12 10 30 33 33 33 26 18 15 15 16 13 12 11 10 3 4 1 . . . 1 . . . . . . Special Weapon 3 | . 7 4 . . . . . . 4 7 5 6 4 1 4 5 5 5 5 5 5 4 2 3 3 3 3 1 Naked Turns . | . . . . . . . . . . . . . . . . . . . . . . . . . . . . . Heaviest Build 297 | 10 90 93 93 97 216 214 224 227 238 229 297 112 115 108 114 112 112 142 142 134 130 133 158 151 154 162 175 173 Greatest Support 75 | 40 40 40 32 32 26 26 26 28 28 28 40 40 40 30 30 70 70 70 70 70 70 70 70 70 70 75 75 75 Greatest Overweight (x) 69 | 1 4 5 5 5 8 8 22 69 8 8 29 2 31 3 3 3 1 2 2 44 1 6 52 2 5 2 2 2 Average Overweight (x) 3 | . 1 2 2 2 4 8 9 8 7 8 5 2 2 3 3 1 1 1 1 1 1 1 4 1 1 1 1 2 Largest Inventory Capacity 35 | 8 25 25 25 25 35 35 35 35 35 35 35 25 25 25 25 25 25 25 25 25 25 25 25 25 25 25 25 25 Average Capacity 26 | 7 20 25 25 25 28 35 35 34 35 35 28 25 25 25 25 25 25 25 25 25 25 25 25 25 25 25 25 25 Most Carried 35 | 2 16 22 25 25 30 35 35 35 35 35 35 25 25 25 25 25 25 25 25 25 25 25 25 25 25 25 25 25 Average Carried 24 | . 11 19 15 24 23 31 34 31 33 34 24 24 24 24 24 24 24 24 24 24 22 22 20 24 24 23 24 24 Final Capacity 35 | 8 25 25 25 25 35 35 35 35 35 35 25 25 25 25 25 25 25 25 25 25 25 25 25 25 25 25 25 25 Final Carried 35 | 2 16 20 25 25 30 35 35 35 35 34 25 25 25 25 25 25 25 25 25 24 25 19 25 25 25 22 25 25 Class Distribution -------------------- 44% | Botlord-Mutant 21% | Bothacker-Mutant 8% | Mutant 6% | Commander-Mutant 4% | Hauler-Skirmisher 4% | Hauler-Mutant 4% | Hauler-Tank Dominant Class ---------------- Mutant | -10/Materials Mutant | -10/Mines Scavenger-Skirmisher | -9/Materials Gunner | -9/Mines Gunner | -9/Exiles Hauler-Skirmisher | -8/Mines Hauler-Tank | -8/Materials Hauler-Mutant | -7/Factory Bothacker-Mutant | -7/Garrison Bothacker-Mutant | -7/Factory Bothacker-Mutant | -7/Garrison Bothacker-Mutant | -6/Factory Bothacker-Mutant | -6/Garrison Bothacker-Mutant | -5/Factory Botlord-Mutant | -5/Garrison Botlord-Mutant | -5/Factory Commander-Mutant | -5/Garrison Botlord-Mutant | -4/Factory Botlord-Mutant | -4/Garrison Botlord-Mutant | -4/Factory Botlord-Mutant | -4/Garrison Botlord-Mutant | -3/Research Botlord-Mutant | -3/Garrison Botlord-Mutant | -3/Research Botlord-Mutant | -3/Garrison Botlord-Mutant | -2/Research Botlord-Mutant | -2/Garrison Botlord-Mutant | -2/Research Resources | -11 -10 -10 -9 -9 -9 -8 -8 -7 -7 -7 -7 -6 -6 -5 -5 -5 -5 -4 -4 -4 -4 -3 -3 -3 -3 -2 -2 -2 ----------- Run | Scr Mat Min Mat Min Exi Min Mat Fac Gar Fac Gar Fac Gar Fac Gar Fac Gar Fac Gar Fac Gar Res Gar Res Gar Res Gar Res Matter Collected 12721 | 234 281 160 264 383 . 392 749 1525 951 50 638 60 494 202 425 74 391 85 462 65 270 470 832 166 1194 956 881 67 Remotely 259 | . . . . . . . . 139 . . . . . . . . . . . . . . . . . 120 . . Salvage Created 9211 | . 603 58 450 441 . 287 934 2263 892 . 323 . 343 . 178 . 134 38 472 . 85 166 527 . 191 527 299 . Parts 542 | . 38 3 26 32 . 30 54 120 53 . 22 . 18 . 19 . 4 3 26 . 2 3 32 2 9 33 13 . Haulers Intercepted 5 | . 1 . 1 . . . 2 1 . . . . . . . . . . . . . . . . . . . . Recyclers Shooed 10 | . . . . 1 . . . 4 . . . . . . . . . . . . . 1 . . . 3 . 1 Parts Field Recycled 41 | . . . . . . . . . . . . . . . . . . . . . . . . . . . 41 . Retrieved Matter 853 | . . . . . . . . . . . . . . . . . . . . . . . . . . . 853 . Parts Self-Destructed . | . . . . . . . . . . . . . . . . . . . . . . . . . . . . . Prevented . | . . . . . . . . . . . . . . . . . . . . . . . . . . . . . Kills | -11 -10 -10 -9 -9 -9 -8 -8 -7 -7 -7 -7 -6 -6 -5 -5 -5 -5 -4 -4 -4 -4 -3 -3 -3 -3 -2 -2 -2 ------- Run | Scr Mat Min Mat Min Exi Min Mat Fac Gar Fac Gar Fac Gar Fac Gar Fac Gar Fac Gar Fac Gar Res Gar Res Gar Res Gar Res Combat Hostiles Destroyed 197 | . 15 10 10 13 . 8 14 30 21 . 8 . 11 . 9 . 3 . 7 . 1 . 14 . 3 9 11 . Melee 2 | . . . . . . . . . . . . . . . . . 2 . . . . . . . . . . . Guns 118 | . 15 . 6 13 . 8 14 23 16 . 8 . 10 . 4 . . . . . . . 1 . . . . . Cannons 21 | . . 2 . . . . . . . . . . . . . . . . 3 . 1 . 1 . 2 8 4 . AOE 51 | . . 8 4 . . . . 7 5 . . . 1 . 5 . . . 3 . . . 10 . 1 1 6 . Classes Destroyed 21 | . 7 1 2 1 . 1 . 3 1 . 2 . . . 1 . . . 1 . . . . . 1 . . . Worker 11 | . 1 1 1 . . 1 1 4 . . . . . . . . . 1 . . . . . 1 . . . . Builder 5 | . . . . . . . . 2 . . . . . . . . . 1 . . . 1 . . . 1 . . Tunneler 6 | . . . . 1 . 3 . 1 . . . . . . . . . . . . . 1 . . . . . . Hauler 5 | . 1 . 1 . . . 2 1 . . . . . . . . . . . . . . . . . . . . Recycler 12 | . 1 . . 1 . . . 8 . . . . . . . . . . . . . 1 . . . 1 . . Carrier 1 | . . . . . . . . . . . . . . . . . . . 1 . . . . . . . . . Operator 3 | . 1 . 1 . . . . 1 . . . . . . . . . . . . . . . . . . . . Watcher 9 | . 2 . 1 . . . 3 3 . . . . . . . . . . . . . . . . . . . . Swarmer 70 | . 6 . . 8 . 5 . 4 5 . 4 . 10 . 6 . . . 4 . . . 10 . 2 1 5 . Cutter 4 | . . . . . . . . . 3 . . . . . . . . . . . . . . . 1 . . . Saboteur 2 | . . . . . . . . . . . . . . . 2 . . . . . . . . . . . . . Grunt 72 | . 9 2 6 4 . 2 12 12 8 . . . 2 . . . 3 . 4 . 1 . 3 . . 1 3 . Brawler 2 | . . . 1 . . . . 1 . . . . . . . . . . . . . . . . . . . . Duelist 4 | . . . . . . 1 . . 1 . 2 . . . . . . . . . . . . . . . . . Protector 1 | . . . . . . . . . . . 1 . . . . . . . . . . . . . . . . . Sentry 13 | . . . 3 1 . . 2 4 3 . . . . . . . . . . . . . . . . . . . Demolisher 1 | . . . . . . . . . . . 1 . . . . . . . . . . . . . . . . . Hunter 2 | . . . . . . . . 2 . . . . . . . . . . . . . . . . . . . . Programmer 20 | . . . . . . . . 7 1 . . . . . 1 . . . . . . . 1 . . 7 3 . Behemoth 1 | . . . . . . . . . . . . . . . . . . . . . . . . . 1 . . . Assembled 8 | . . 8 . . . . . . . . . . . . . . . . . . . . . . . . . . Best Kill Streak 7 | . 4 3 5 5 . 4 5 5 7 . 5 . 5 . 5 . 1 2 3 . 1 1 4 1 1 3 6 . Combat Bots Only 7 | . 3 3 4 5 . 4 3 4 7 . 5 . 5 . 5 . 1 . 3 . 1 . 4 . 1 2 6 . Max Kills in Single Turn 3 | . 2 2 2 2 . 2 1 2 2 . 1 . 1 . 3 . 1 1 3 . 1 1 2 1 1 1 3 . Gunslinging 1 | . 1 . 1 1 . 1 . . . . . . . . . . . . . . . . . . . . . . Exploded 3 | . . 2 1 . . . . 2 2 . . . 1 . 3 . . . 3 . . . 2 . 1 1 3 . Melee 1 | . . . . . . . . . . . . . . . . . 1 . . . . . . . . . . . Uniques/NPCs Destroyed . | . . . . . . . . . . . . . . . . . . . . . . . . . . . . . Combat | -11 -10 -10 -9 -9 -9 -8 -8 -7 -7 -7 -7 -6 -6 -5 -5 -5 -5 -4 -4 -4 -4 -3 -3 -3 -3 -2 -2 -2 -------- Run | Scr Mat Min Mat Min Exi Min Mat Fac Gar Fac Gar Fac Gar Fac Gar Fac Gar Fac Gar Fac Gar Res Gar Res Gar Res Gar Res Damage Taken 17606 | . 541 429 654 348 . 411 630 2624 1179 204 762 . 1372 14 405 84 380 114 287 201 75 849 569 56 487 2432 747 1752 Core 2091 | . 76 41 141 74 . 88 118 268 104 . 99 . 183 . 45 7 52 34 25 49 18 58 55 . 22 199 116 219 Absorbed by Shields 2203 | . . . . . . . 98 156 213 . . . . 5 155 36 138 40 108 69 10 56 127 . . 362 549 81 Reduced by Siege Mode 128 | . . . . . . . . . . . . . . . . . . . . . . . . . . 96 32 . Redirected to Shielding 105 | . . . . . . . . . . . . . . . . . . . . . . . . . . 105 . . Core Remaining (%) 70 | 100 . 53 . . . 24 78 . . . 32 . 78 . . . 89 . . . 89 . . . 89 . . . Volleys Fired 1277 | . 68 31 38 22 . 25 51 112 75 6 43 2 62 . 48 8 36 12 66 20 21 86 60 13 141 109 99 23 Largest 3 | . 2 1 3 3 . 3 3 3 3 1 3 1 3 . 2 1 1 1 1 1 1 1 3 1 2 2 3 1 Hottest 230 | . 200 100 63 69 . 69 69 84 74 5 69 5 115 . 46 5 23 120 120 7 120 120 120 30 78 190 230 40 Shots Fired 2006 | . 135 31 94 67 . 77 153 272 158 6 89 2 117 . 65 8 36 12 69 20 23 86 78 14 149 112 110 23 Gun 1167 | . 122 . 85 67 . 77 153 259 135 . 74 . 96 . 32 . 9 . . . . 37 8 . 13 . . . Cannon 305 | . . . . . . . . . . . . . . . . . . 2 30 . 12 7 38 1 88 58 67 2 Launcher 76 | . . 10 9 . . . . 13 7 . . . . . 3 . . 1 8 . . . 10 1 1 3 10 . Special 458 | . 13 21 . . . . . . 16 6 15 2 21 . 30 8 27 9 31 20 11 42 22 12 47 51 33 21 Kinetic 1171 | . 66 . 85 67 . 77 153 259 135 . 74 . 79 . 32 . 9 . . . . 37 7 . 13 37 41 . Thermal 129 | . 69 21 . . . . . . . . . . 17 . . . . . . . . . 1 . . 19 2 . Explosive 62 | . . 10 9 . . . . 6 . . . . . . 3 . . 1 8 . . . 10 1 1 3 10 . Electromagnetic 220 | . . . . . . . . 7 7 . . . . . . . . 2 30 . 12 7 38 1 88 2 24 2 Robot Hit Streak 28 | . 13 2 12 8 . 8 12 16 18 4 11 1 12 . 6 3 15 7 14 11 5 16 16 6 28 9 13 16 Robot Miss Streak 7 | . 4 4 3 2 . 3 7 4 4 1 2 1 5 . 2 2 1 3 3 1 1 1 3 1 2 3 3 2 Penetration Max 1 | . . . . . . . . 1 . . . . . . . . . . . . . . . . . . . . Secondary Targets 20 | . 1 . 2 6 . 2 2 2 1 . . . 4 . . . . . . . . . . . . . . . Max Gunslinging Chain 2 | . 1 . 1 2 . 2 1 1 1 . . . 1 . . . . . . . . . . . . . . . Shots Hit Robots 1168 | . 81 3 60 42 . 40 90 197 104 5 52 1 58 . 32 5 34 7 36 18 11 41 36 10 50 76 61 18 Core Hits 456 | . 35 16 33 21 . 15 42 91 47 . 19 . 18 . 16 . 4 1 10 . 1 3 28 . 8 25 23 . Critical Kills 5 | . . . . 1 . . . 1 . . 2 . . . . . 1 . . . . . . . . . . . Critical Parts Destroyed 8 | . . . 1 . . . . 5 . . . . . . . . 2 . . . . . . . . . . . Critical Strikes 19 | . . . 1 1 . . . 6 . . 2 . . . . . 3 . . . . . 1 . 1 3 1 . Destroy 9 | . . . 1 1 . . . 5 . . 2 . . . . . . . . . . . . . . . . . Blast 3 | . . . . . . . . . . . . . . . . . . . . . . . . . . 3 . . Corrupt 3 | . . . . . . . . . . . . . . . . . . . . . . . 1 . 1 . 1 . Smash 4 | . . . . . . . . 1 . . . . . . . . 3 . . . . . . . . . . . Melee Attacks 183 | . . . . . . . 1 57 25 . . . . 1 26 3 64 . . . . . . . . 4 2 . Impact 177 | . . . . . . . 1 57 25 . . . . 1 26 3 64 . . . . . . . . . . . Slashing . | . . . . . . . . . . . . . . . . . . . . . . . . . . . . . Piercing . | . . . . . . . . . . . . . . . . . . . . . . . . . . . . . Sneak Attacks 4 | . . . . . . . . 2 . . . . . . . . . . . . . . . . . 2 . . Combat Hostiles . | . . . . . . . . . . . . . . . . . . . . . . . . . . . . . Follow-up Attacks . | . . . . . . . . . . . . . . . . . . . . . . . . . . . . . Damage Inflicted 21487 | . 911 520 1078 653 . 631 1410 4299 1733 . 623 . 671 . 461 . 444 131 746 . 159 377 1314 12 435 2065 2758 56 Guns 10807 | . 787 . 536 620 . 631 1410 3398 1414 . 623 . 671 . 233 . 32 . . . . 140 139 . 173 . . . Cannons 4511 | . . . . . . . . . . . . . . . . . . 85 442 . 159 165 360 . 157 1655 1447 41 Explosions 5192 | . . 438 542 . . . . 670 319 . . . . . 228 . . 46 304 . . . 815 4 105 410 1311 . Melee 643 | . . . . . . . . 231 . . . . . . . . 412 . . . . . . . . . . . Ramming 162 | . . 34 . 33 . . . . . . . . . . . . . . . . . 72 . 8 . . . 15 Kinetic 12673 | . 326 . 536 620 . 631 1410 3398 1414 . 623 . 476 . 233 . 32 . . . . 140 139 . 173 1235 1287 . Thermal 1249 | . 585 48 . . . . . . 29 . . . 195 . . . . . . . . . . . . 348 44 . Explosive 4589 | . . 438 542 . . . . 386 . . . . . . 228 . . 46 304 . . . 815 4 105 410 1311 . Electromagnetic 2171 | . . . . . . . . 284 290 . . . . . . . . 85 442 . 159 165 360 . 157 72 116 41 Impact 643 | . . . . . . . . 231 . . . . . . . . 412 . . . . . . . . . . . Slashing . | . . . . . . . . . . . . . . . . . . . . . . . . . . . . . Piercing . | . . . . . . . . . . . . . . . . . . . . . . . . . . . . . Highest Corruption 13 | . . 7 7 7 7 7 . 5 7 . . . . . 2 . . 1 4 5 5 9 12 12 13 5 7 11 Average Corruption 6 | . . 7 7 7 7 7 . 3 6 . . . . . 1 . . 1 3 4 5 1 11 12 12 3 6 7 Corruption Purged 13 | . . . . . . . . 4 7 . . . . . 2 . . . . . . . . . . . . . Corruption Blocked . | . . . . . . . . . . . . . . . . . . . . . . . . . . . . . Effects 939 | . . 1 9 30 19 41 . 66 63 . . . . . 43 . . . 48 12 46 9 179 11 199 29 119 15 Message Errors 238 | . . 1 1 10 2 12 . 14 20 . . . . . 13 . . . 11 3 9 3 43 2 58 4 29 3 Matter Fused 226 | . . . 2 2 7 7 . 14 9 . . . . . 6 . . . 10 4 15 3 53 2 53 7 29 3 Heat Flow Errors 112 | . . . 2 5 3 4 . 12 3 . . . . . 3 . . . 3 2 5 1 22 1 20 9 15 2 Energy Discharges 105 | . . . . 4 1 7 . 7 11 . . . . . 2 . . . 8 1 5 2 17 . 19 2 16 3 Parts Rejected 5 | . . . . 1 . . . 1 1 . . . . . . . . . . . . . . 1 . . . 1 Data Loss (minor) 128 | . . . . 5 5 1 . 11 9 . . . . . 11 . . . 5 2 7 . 19 3 29 3 15 3 Data Loss (major) 45 | . . . 3 1 1 3 . 2 . . . . . . 1 . . . 7 . 3 . 11 1 4 3 5 . Misfires 44 | . . . . 2 . 5 . 2 2 . . . . . 5 . . . 3 . 2 . 8 1 7 . 7 . Alerts 23 | . . . . . . 1 . 2 1 . . . . . 2 . . . 1 . . . 5 . 8 1 2 . Weapon Failures 13 | . . . 1 . . 1 . 1 7 . . . . . . . . . . . . . 1 . 1 . 1 . Overload Shots 17 | . . . . . . . . . . . . . . . . . . 2 3 . 6 5 1 . . . . . Effects 3 | . . . . . . . . . . . . . . . . . . . 1 . . 2 . . . . . . Heat Surge 2 | . . . . . . . . . . . . . . . . . . . 1 . . 1 . . . . . . Short Circuit 1 | . . . . . . . . . . . . . . . . . . . . . . 1 . . . . . . Overflow Damage 835 | . 14 . 10 . . . . 252 9 . . . . . . . 77 45 15 . . 56 62 . . 97 198 . Projectiles 475 | . 14 . . . . . . 40 . . . . . . . . . 45 10 . . 55 39 . . 97 175 . Explosions 81 | . . . 10 . . . . 11 9 . . . . . . . . . 5 . . . 23 . . . 23 . Melee 279 | . . . . . . . . 201 . . . . . . . . 77 . . . . 1 . . . . . . Knockbacks 33 | . . 1 . . . . . 2 . . . . . . . . . . . . . 2 . . . 10 18 . Impact 4 | . . 1 . . . . . 1 . . . . . . . . . . . . . 2 . . . . . . Kinetic 27 | . . . . . . . . . . . . . . . . . . . . . . . . . . 10 17 . Secondary 2 | . . . . . . . . 1 . . . . . . . . . . . . . . . . . . 1 . Self-Inflicted Damage 245 | . . 73 30 16 . . . 29 18 . . . . . 10 . . . . . . . 45 . . 24 . . Shots 12 | . . 4 2 . . . . 2 1 . . . . . 1 . . . . . . . 1 . . 1 . . Rammed 12 | . . 4 . 1 . . . . . . . . . . . . . . . . . 5 . . . . . 2 Targets Rammed 14 | . . 5 . 1 . . . . . . . . . . . . . . . . . 5 . 1 . . . 2 Kicked . | . . . . . . . . . . . . . . . . . . . . . . . . . . . . . Crushed 2 | . . 1 . . . . . . . . . . . . . . . . . . . . . 1 . . . . Highest Temperature 461 | . 64 180 249 232 164 280 161 257 273 3 36 461 283 . 212 . 2 136 212 153 257 190 231 195 261 361 314 173 Average Temperature 70 | . 22 57 46 75 94 74 49 68 62 3 11 229 82 . 37 . 2 83 75 75 86 70 78 104 63 111 97 89 Received Heat Transfer 2430 | . 237 41 153 99 . 135 234 520 281 51 72 . 72 6 12 14 114 . 22 15 21 27 88 9 45 62 69 31 Effects 11 | . . . . 2 . 1 . . . . . . 4 . . . . . . . . . . . 1 . 3 . Energy Bleed 1 | . . . . . . . . . . . . . . . . . . . . . . . . . . . 1 . Interference 10 | . . . . 2 . 1 . . . . . . 4 . . . . . . . . . . . 1 . 2 . Siege Activations 7 | . . . . . . . . . . . . . . . . . . . . . . . . . . 4 3 . Total Turns 152 | . . . . . . . . . . . . . . . . . . . . . . . . . . 55 97 . Longest Duration 65 | . . . . . . . . . . . . . . . . . . . . . . . . . . 25 65 . Robots Corrupted 5 | . . . . . . . . . . . . . . . . . . . 2 . . . 2 . . . 1 . Combat Hostiles 4 | . . . . . . . . . . . . . . . . . . . 1 . . . 2 . . . 1 . Parts Fried 14 | . . . . . . . . 2 1 . . . . . . . 1 . 1 . 2 4 3 . . . . . Impact Corruptions 13 | . . . . . . . . 9 . . . . . . . . 3 . . . . 1 . . . . . . Robots Melted . | . . . . . . . . . . . . . . . . . . . . . . . . . . . . . Combat Hostiles . | . . . . . . . . . . . . . . . . . . . . . . . . . . . . . Parts Melted 3 | . 2 . 1 . . . . . . . . . . . . . . . . . . . . . . . . . Heat Transferred 2119 | . 1275 100 . . . . . . 50 . . . 370 . . . . . . . . . . . . 287 37 . Parts Sabotaged . | . . . . . . . . . . . . . . . . . . . . . . . . . . . . . Parts Stolen . | . . . . . . . . . . . . . . . . . . . . . . . . . . . . . Parts Stripped . | . . . . . . . . . . . . . . . . . . . . . . . . . . . . . Power Chain Reactions 2 | . . . . . . . . . 2 . . . . . . . . . . . . . . . . . . . Missiles Intercepted . | . . . . . . . . . . . . . . . . . . . . . . . . . . . . . Alert | -11 -10 -10 -9 -9 -9 -8 -8 -7 -7 -7 -7 -6 -6 -5 -5 -5 -5 -4 -4 -4 -4 -3 -3 -3 -3 -2 -2 -2 ------- Run | Scr Mat Min Mat Min Exi Min Mat Fac Gar Fac Gar Fac Gar Fac Gar Fac Gar Fac Gar Fac Gar Res Gar Res Gar Res Gar Res Peak Influence 1140 | . 256 65 285 186 . 95 161 470 1097 733 1140 700 838 441 749 522 506 252 449 369 331 212 756 421 174 136 789 491 Initial 598 | . . 5 . 51 . . . 37 212 575 513 598 490 439 266 392 365 252 41 235 117 186 74 402 36 83 27 443 Average 413 | . 56 1 157 131 . 49 59 205 894 610 938 650 647 412 553 408 444 66 290 298 257 81 528 36 92 31 610 416 Maximum Alert Level 4 | . 1 . 1 . . . . 2 3 3 4 3 3 2 3 2 2 1 2 1 1 1 3 2 . . 3 2 Low Security (%) 34 | 100 90 100 59 100 . 100 100 45 . . . . . . . . . 79 27 24 21 79 3 93 100 100 14 2 Level 1 16 | . 9 . 40 . . . . 47 3 . . . . 19 29 60 10 20 43 75 78 20 39 . . . 2 14 Level 2 25 | . . . . . . . . 6 17 73 8 94 68 80 44 39 89 . 29 . . . 32 6 . . 20 83 Level 3 22 | . . . . . . . . . 79 26 81 5 31 . 26 . . . . . . . 24 . . . 62 . Level 4 . | . . . . . . . . . . . 9 . . . . . . . . . . . . . . . . . Level 5 . | . . . . . . . . . . . . . . . . . . . . . . . . . . . . . High Security . | . . . . . . . . . . . . . . . . . . . . . . . . . . . . . Max Security . | . . . . . . . . . . . . . . . . . . . . . . . . . . . . . Squads Dispatched 68 | . 3 . 1 . . . 1 16 . 3 . 5 . 3 . 3 . 4 . 2 . 6 . 4 . 16 . 1 Investigation 13 | . 2 . . . . . . 4 . 1 . 3 . . . . . 1 . . . . . 1 . 1 . . Extermination 19 | . . . . . . . . 8 . 1 . . . . . 1 . 2 . . . 2 . . . 5 . . Reinforcement 19 | . 1 . 1 . . . 1 3 . . . . . 2 . . . 1 . 1 . 2 . 1 . 6 . . Assault 2 | . . . . . . . . . . . . . . . . . . . . . . . . . . 1 . 1 Garrison 15 | . . . . . . . . 1 . 1 . 2 . 1 . 2 . . . 1 . 2 . 2 . 3 . . Intercept . | . . . . . . . . . . . . . . . . . . . . . . . . . . . . . Construction Impeded 3 | . . . . . . . . 2 . . . . . . . . . . . . . . . . . 1 . . Haulers Reinforced . | . . . . . . . . . . . . . . . . . . . . . . . . . . . . . Active Scanning Responses . | . . . . . . . . . . . . . . . . . . . . . . . . . . . . . Cargo Convoy Interrupts 1 | . . . . . . . . . . . . . . . . . . . . . . . . . . . . 1 Alert ID Control Effect 179 | . . . . . . . . . . . 1 11 1 6 4 2 7 5 6 10 11 24 8 4 8 48 10 13 Stealth | -11 -10 -10 -9 -9 -9 -8 -8 -7 -7 -7 -7 -6 -6 -5 -5 -5 -5 -4 -4 -4 -4 -3 -3 -3 -3 -2 -2 -2 --------- Run | Scr Mat Min Mat Min Exi Min Mat Fac Gar Fac Gar Fac Gar Fac Gar Fac Gar Fac Gar Fac Gar Res Gar Res Gar Res Gar Res Distress Signals 22 | . 6 3 1 1 . . . 2 . . . . . . . . . . . 2 . 2 . . . 3 . 2 Communications Jammed . | . . . . . . . . . . . . . . . . . . . . . . . . . . . . . Distress Signals . | . . . . . . . . . . . . . . . . . . . . . . . . . . . . . Times Spotted 585 | . 32 9 19 13 . 10 23 47 29 6 16 9 23 6 21 5 31 10 26 11 9 50 21 7 24 59 44 25 Peak Tracking Total 12 | . 5 2 6 4 . 4 4 5 6 3 7 4 7 4 4 2 5 2 5 3 3 8 5 1 5 7 8 12 Tactical Retreats 32 | . 1 . 2 . . 1 . 2 . . 3 . 1 . . . 2 . 3 . 1 4 1 . 2 4 4 1 Traps | -11 -10 -10 -9 -9 -9 -8 -8 -7 -7 -7 -7 -6 -6 -5 -5 -5 -5 -4 -4 -4 -4 -3 -3 -3 -3 -2 -2 -2 ------- Run | Scr Mat Min Mat Min Exi Min Mat Fac Gar Fac Gar Fac Gar Fac Gar Fac Gar Fac Gar Fac Gar Res Gar Res Gar Res Gar Res Traps Triggered 125 | . . . . . . . . 1 15 . 13 . 16 . 8 . 13 . 9 . 6 3 11 . 13 1 16 . Indirectly . | . . . . . . . . . . . . . . . . . . . . . . . . . . . . . Trap Hack Attempts 2 | . . . . . . . . . . . . . . . . . . . . . . . . . 2 . . . Triggered . | . . . . . . . . . . . . . . . . . . . . . . . . . . . . . Disarmed . | . . . . . . . . . . . . . . . . . . . . . . . . . . . . . Reprogrammed 1 | . . . . . . . . . . . . . . . . . . . . . . . . . 1 . . . Reused . | . . . . . . . . . . . . . . . . . . . . . . . . . . . . . Traps Extracted . | . . . . . . . . . . . . . . . . . . . . . . . . . . . . . Installed . | . . . . . . . . . . . . . . . . . . . . . . . . . . . . . Triggered . | . . . . . . . . . . . . . . . . . . . . . . . . . . . . . Most Traps Carried 3 | . . 3 3 3 3 3 3 3 1 . . . . . . . . . . . . . . . . . . . Exploded 1 | . . . . . . . . . . . . . . . . . . 1 . . . . . . . . . . Machines | -11 -10 -10 -9 -9 -9 -8 -8 -7 -7 -7 -7 -6 -6 -5 -5 -5 -5 -4 -4 -4 -4 -3 -3 -3 -3 -2 -2 -2 ---------- Run | Scr Mat Min Mat Min Exi Min Mat Fac Gar Fac Gar Fac Gar Fac Gar Fac Gar Fac Gar Fac Gar Res Gar Res Gar Res Gar Res Machines Disabled 73 | . . 1 2 1 . . 1 1 4 4 7 . 4 . 4 1 6 1 6 3 4 1 5 . 4 3 10 . Max in Single Turn 2 | . . 1 1 1 . . 1 1 1 . 2 . 1 . 1 . 1 . 1 . 1 . 1 . 1 . 1 . Garrison Access 1 | . . . . . . . . . . . . . . . . . . . . . . . . . . 1 . . Garrison Relay 38 | . . . . . . . . . 4 . 3 . 4 . 4 . 4 . 4 . 3 . 4 . 4 . 4 . Phase Generator 2 | . . . . . . . . . . . 1 . . . . . . . . . . . . . . . 1 . Machines Sabotaged . | . . . . . . . . . . . . . . . . . . . . . . . . . . . . . Garrisons Compromised . | . . . . . . . . . . . . . . . . . . . . . . . . . . . . . Overloaded Fab Kills . | . . . . . . . . . . . . . . . . . . . . . . . . . . . . . Hacking | -11 -10 -10 -9 -9 -9 -8 -8 -7 -7 -7 -7 -6 -6 -5 -5 -5 -5 -4 -4 -4 -4 -3 -3 -3 -3 -2 -2 -2 --------- Run | Scr Mat Min Mat Min Exi Min Mat Fac Gar Fac Gar Fac Gar Fac Gar Fac Gar Fac Gar Fac Gar Res Gar Res Gar Res Gar Res Machines Accessed 54 | . 9 . 3 . 2 . 4 22 . 1 . 2 . 1 . 1 . 1 . 2 . 2 . 1 . 2 . 1 Terminals 32 | . 7 . 2 . . . 4 15 . . . 1 . . . . . . . 1 . 1 . . . . . 1 Fabricators 4 | . . . . . . . . 4 . . . . . . . . . . . . . . . . . . . . Repair Stations . | . . . . . . . . . . . . . . . . . . . . . . . . . . . . . Recycling Units 2 | . 2 . . . . . . . . . . . . . . . . . . . . . . . . . . . Scanalyzers 2 | . . . 1 . . . . 1 . . . . . . . . . . . . . . . . . . . . Garrison Access 12 | . . . . . . . . 2 . 1 . 1 . 1 . 1 . 1 . 1 . 1 . 1 . 2 . . Total Hacks 191 | . 35 . 7 . 2 . 13 103 . 3 . 5 . 2 . 2 . 4 . 4 . 3 . 3 . 4 . 1 Successful 102 | . 23 . 4 . 2 . 6 50 . 2 . 2 . 1 . 1 . 2 . 1 . 3 . 2 . 3 . . Failed 88 | . 11 . 3 . . . 7 53 . 1 . 3 . 1 . 1 . 2 . 3 . . . 1 . 1 . 1 Catastrophic 20 | . 1 . . . . . 2 15 . . . . . . . . . . . 1 . . . . . 1 . . Database Lockouts 1 | . 1 . . . . . . . . . . . . . . . . . . . . . . . . . . . Manual 123 | . 22 . 3 2 1 . 12 68 . 2 . 1 . 1 . 1 . 3 . 1 . 2 . 2 . 2 . . Terminals 135 | . 29 . 5 . . . 13 80 . . . 3 . . . . . . . 2 . 2 . . . . . 1 Fabricators 13 | . . . . . . . . 13 . . . . . . . . . . . . . . . . . . . . Repair Stations . | . . . . . . . . . . . . . . . . . . . . . . . . . . . . . Recycling Units 6 | . 6 . . . . . . . . . . . . . . . . . . . . . . . . . . . Scanalyzers 5 | . . . 2 . . . . 3 . . . . . . . . . . . . . . . . . . . . Garrison Access 30 | . . . . . . . . 7 . 3 . 2 . 2 . 2 . 4 . 2 . 1 . 3 . 4 . . Terminal Hacks 49 | . 15 . 2 . 2 . 4 25 . . . . . . . . . . . . . 1 . . . . . . Record 5 | . 4 . . . 1 . . . . . . . . . . . . . . . . . . . . . . . Part Schematic 3 | . 1 . . . . . . 2 . . . . . . . . . . . . . . . . . . . . Robot Schematic 1 | . . . . . . . . 1 . . . . . . . . . . . . . . . . . . . . Robot Analysis 12 | . 3 . 2 . . . . 7 . . . . . . . . . . . . . . . . . . . . Prototype ID Bank 6 | . 4 . . . . . 1 1 . . . . . . . . . . . . . . . . . . . . Branch Access Points 1 | . . . . . . . 1 . . . . . . . . . . . . . . . . . . . . . Terminal Index 5 | . 1 . . . . . 2 1 . . . . . . . . . . . . . 1 . . . . . . Fabricator Index 1 | . . . . . . . . 1 . . . . . . . . . . . . . . . . . . . . Alert Level 3 | . . . . . . . . 3 . . . . . . . . . . . . . . . . . . . . Unreport Threat 2 | . . . . . . . . 2 . . . . . . . . . . . . . . . . . . . . Locate Traps 2 | . 1 . . . . . . 1 . . . . . . . . . . . . . . . . . . . . Security Status 1 | . . . . . . . . 1 . . . . . . . . . . . . . . . . . . . . Investigation Status 1 | . 1 . . . . . . . . . . . . . . . . . . . . . . . . . . . Recall Extermination 1 | . . . . . . . . 1 . . . . . . . . . . . . . . . . . . . . Hauler Manifests 1 | . . . . . . . . 1 . . . . . . . . . . . . . . . . . . . . Zone Layout 3 | . . . . . . . . 3 . . . . . . . . . . . . . . . . . . . . EX-Prototype ID Bank 1 | . . . . . 1 . . . . . . . . . . . . . . . . . . . . . . . Fabricator Hacks 6 | . . . . . . . . 6 . . . . . . . . . . . . . . . . . . . . Network Status 2 | . . . . . . . . 2 . . . . . . . . . . . . . . . . . . . . Load Schematic 2 | . . . . . . . . 2 . . . . . . . . . . . . . . . . . . . . Build 2 | . . . . . . . . 2 . . . . . . . . . . . . . . . . . . . . Repair Station Hacks . | . . . . . . . . . . . . . . . . . . . . . . . . . . . . . Recycling Unit Hacks 2 | . 2 . . . . . . . . . . . . . . . . . . . . . . . . . . . Retrieve Components 2 | . 2 . . . . . . . . . . . . . . . . . . . . . . . . . . . Scanalyzer 4 | . . . 2 . . . . 2 . . . . . . . . . . . . . . . . . . . . Insert Component 2 | . . . 1 . . . . 1 . . . . . . . . . . . . . . . . . . . . Analyze 2 | . . . 1 . . . . 1 . . . . . . . . . . . . . . . . . . . . Garrison Access Hacks 11 | . . . . . . . . 1 . 1 . 1 . 1 . 1 . 1 . 1 . 1 . 1 . 2 . . Unlock Access 11 | . . . . . . . . 1 . 1 . 1 . 1 . 1 . 1 . 1 . 1 . 1 . 2 . . Unauthorized Hacks 30 | . 6 . . . . . 2 16 . 1 . 1 . . . . . 1 . . . 1 . 1 . 1 . . Terminals 18 | . 4 . . . . . 2 11 . . . . . . . . . . . . . 1 . . . . . . Track 2 | . . . . . . . . 2 . . . . . . . . . . . . . . . . . . . . Botnet 12 | . 3 . . . . . 1 8 . . . . . . . . . . . . . . . . . . . . Operators 4 | . 1 . . . . . 1 1 . . . . . . . . . . . . . 1 . . . . . . Fabricators 3 | . . . . . . . . 3 . . . . . . . . . . . . . . . . . . . . Fabnet 3 | . . . . . . . . 3 . . . . . . . . . . . . . . . . . . . . Repair Stations . | . . . . . . . . . . . . . . . . . . . . . . . . . . . . . Recycling Units 2 | . 2 . . . . . . . . . . . . . . . . . . . . . . . . . . . Tunnel 2 | . 2 . . . . . . . . . . . . . . . . . . . . . . . . . . . Scanalyzers . | . . . . . . . . . . . . . . . . . . . . . . . . . . . . . Garrison Access 7 | . . . . . . . . 2 . 1 . 1 . . . . . 1 . . . . . 1 . 1 . . Watchers 1 | . . . . . . . . 1 . . . . . . . . . . . . . . . . . . . . Eject 6 | . . . . . . . . 1 . 1 . 1 . . . . . 1 . . . . . 1 . 1 . . Data Cores Recovered 4 | . . . . . . . . 1 . . . 1 . . . . . . . 1 . . . 1 . . . . Used 1 | . . . . . . . . . . . . 1 . . . . . . . . . . . . . . . . Hacking Detections 47 | . 7 . 2 1 . . 4 19 . 1 . 2 . 1 . 1 . 1 . 2 . 2 . 1 . 2 . 1 Full Trace Events 4 | . . . . . . . . 3 . . . 1 . . . . . . . . . . . . . . . . Feedback Events . | . . . . . . . . . . . . . . . . . . . . . . . . . . . . . Feedback Blocked . | . . . . . . . . . . . . . . . . . . . . . . . . . . . . . Robot Schematics Acquired 1 | . . . . . . . . 1 . . . . . . . . . . . . . . . . . . . . Robots Built . | . . . . . . . . . . . . . . . . . . . . . . . . . . . . . Authchips . | . . . . . . . . . . . . . . . . . . . . . . . . . . . . . Time . | . . . . . . . . . . . . . . . . . . . . . . . . . . . . . Total Robot Build Rating . | . . . . . . . . . . . . . . . . . . . . . . . . . . . . . Part Schematics Acquired 5 | . 1 . 1 . . . . 3 . . . . . . . . . . . . . . . . . . . . Parts Built 3 | . . . . . . . . 3 . . . . . . . . . . . . . . . . . . . . Authchips . | . . . . . . . . . . . . . . . . . . . . . . . . . . . . . Time 168 | . . . . . . . . 168 . . . . . . . . . . . . . . . . . . . . Total Part Build Rating 12 | . . . . . . . . 12 . . . . . . . . . . . . . . . . . . . . Parts Repaired . | . . . . . . . . . . . . . . . . . . . . . . . . . . . . . Time . | . . . . . . . . . . . . . . . . . . . . . . . . . . . . . Parts Recycled . | . . . . . . . . . . . . . . . . . . . . . . . . . . . . . Recycled Matter . | . . . . . . . . . . . . . . . . . . . . . . . . . . . . . Retrieved Matter . | . . . . . . . . . . . . . . . . . . . . . . . . . . . . . Retrieved Components . | . . . . . . . . . . . . . . . . . . . . . . . . . . . . . Parts Scanalyzed 2 | . . . 1 . . . . 1 . . . . . . . . . . . . . . . . . . . . Part Schematics Acquired 2 | . . . 1 . . . . 1 . . . . . . . . . . . . . . . . . . . . Parts Damaged . | . . . . . . . . . . . . . . . . . . . . . . . . . . . . . Bothacking | -11 -10 -10 -9 -9 -9 -8 -8 -7 -7 -7 -7 -6 -6 -5 -5 -5 -5 -4 -4 -4 -4 -3 -3 -3 -3 -2 -2 -2 ------------ Run | Scr Mat Min Mat Min Exi Min Mat Fac Gar Fac Gar Fac Gar Fac Gar Fac Gar Fac Gar Fac Gar Res Gar Res Gar Res Gar Res Used RIF Installer 10 | . . . . . . . . . 1 . 1 . 1 . 1 . 1 . 1 . 1 . 1 . 1 . 1 . Coupler Efficiency 2 | . . . . . . . . . . . . . . . . . . . 1 . 1 . . . . . . . Hotswap 1 | . . . . . . . . . . . . . 1 . . . . . . . . . . . . . . . Threat Obfuscator 2 | . . . . . . . . . . . . . . . . . . . . . . . . . 1 . 1 . Alert ID Control 1 | . . . . . . . . . . . 1 . . . . . . . . . . . . . . . . . Program Shield 1 | . . . . . . . . . . . . . . . . . . . . . . . 1 . . . . . Autooverride 1 | . . . . . . . . . . . . . . . . . 1 . . . . . . . . . . . Autoassimilate 1 | . . . . . . . . . . . . . . . 1 . . . . . . . . . . . . . Robots Hacked 246 | . . . . . . . . . 9 2 7 1 14 . 13 4 23 4 18 11 8 31 10 7 25 35 21 3 Non-combat 32 | . . . . . . . . . . . 1 . . . . 2 . 3 . 4 1 13 . 1 . 6 . 1 Combat 214 | . . . . . . . . . 9 2 6 1 14 . 13 2 23 1 18 7 7 18 10 6 25 29 21 2 Autooverrided 14 | . . . . . . . . . . . . . . . . . . . 2 . 1 3 . . . 3 4 1 Autoassimilated 23 | . . . . . . . . . . . . . . . 1 . 4 . 1 . . 2 1 2 5 5 2 . Robot Hacks Applied 245 | . . . . . . . . . 9 4 8 1 13 . 15 5 18 5 17 15 7 30 9 8 21 39 19 2 parse_system 15 | . . . . . . . . . . . 1 . . . 1 . . . 1 1 . 2 . . 1 6 1 1 ignore_repairs 7 | . . . . . . . . . . . . . . . . . . . . . . 7 . . . . . . map_walls 2 | . . . . . . . . . . . . . . . . . . 1 . 1 . . . . . . . . drop_inventory 5 | . . . . . . . . . . . . . . . . . . 1 . 1 . . . . . 3 . . locate_stockpiles 1 | . . . . . . . . . . . . . . . . . . . . . . . . . . 1 . . find_recycling 1 | . . . . . . . . . . . . . . . . . . . . 1 . . . . . . . . ignore_parts 4 | . . . . . . . . . . . . . . . . . . . . . . 1 . . . 3 . . purge_threat 4 | . . . . . . . . . . . . . . . . . . 1 . . . . . 3 . . . . block_reporting 1 | . . . . . . . . . . . . . . . . . . . . . . 1 . . . . . . map_route 2 | . . . . . . . . . . . . . . . . . . . . 1 . 1 . . . . . . relay_feed 1 | . . . . . . . . . . . . . . . . . . . . . . 1 . . . . . . find_shortcuts 1 | . . . . . . . . . . . . . . . . . . . . . . . . . . 1 . . find_garrison 5 | . . . . . . . . . . 1 . . . . . 1 . . . 1 . 1 . . . 1 . . tweak_propulsion 1 | . . . . . . . . . . . . . . . . . . . . 1 . . . . . . . . mark_system 3 | . . . . . . . . . . 1 . . . . . . . . . . . . . . . . 2 . broadcast_data 1 | . . . . . . . . . . . . . 1 . . . . . . . . . . . . . . . overload_power 3 | . . . . . . . . . . . . . 3 . . . . . . . . . . . . . . . disable_weapons 14 | . . . . . . . . . . . . 1 . . 2 1 2 . 1 2 . . . . . 5 . . go_dormant 1 | . . . . . . . . . . 1 . . . . . . . . . . . . . . . . . . overwrite_iff 44 | . . . . . . . . . 1 . 1 . 3 . 2 . 5 1 7 . 1 . 2 . 11 5 5 . streamctrl_low 1 | . . . . . . . . . . . . . . . . . . . . 1 . . . . . . . . streamctrl_high 1 | . . . . . . . . . . . . . . . . . . . . . . . . . 1 . . . formatsys_low 6 | . . . . . . . . . . . . . . . . 2 . 1 . . . 2 . 1 . . . . formatsys_high 121 | . . . . . . . . . 8 1 6 . 6 . 10 1 11 . 8 5 6 14 7 4 8 14 11 1 Relay Couplers Released 171 | . . . . . . . . 7 15 3 10 3 18 . 16 . 13 3 16 . 10 . 18 3 17 3 16 . Ejected 19 | . . . . . . . . 4 . 3 . 3 . . . . . 3 . . . . . 3 . 3 . . Machine Destruction 149 | . . . . . . . . . 15 . 10 . 18 . 16 . 13 . 16 . 10 . 18 . 17 . 16 . Programmers 3 | . . . . . . . . 3 . . . . . . . . . . . . . . . . . . . . Attached 57 | . . . . . . . . . 5 1 4 2 6 1 4 . 7 2 1 2 2 2 6 . 6 2 4 . Fabnet Peak Effective % 6 | . . . . . . . . . . . . 6 6 2 2 2 2 . . . . . . . . . . . Autooverrided 3 | . . . . . . . . . . . . . 2 . . . 1 . . . . . . . . . . . Robots Rewired 6 | . . . . . . . . . . . . . . . . . . . . . . . . . 6 . . . Allies Hacked 9 | . . . . . . . . . . . . . . . . . . . 4 . . 5 . . . . . . Hacks Repelled . | . . . . . . . . . . . . . . . . . . . . . . . . . . . . . Allies | -11 -10 -10 -9 -9 -9 -8 -8 -7 -7 -7 -7 -6 -6 -5 -5 -5 -5 -4 -4 -4 -4 -3 -3 -3 -3 -2 -2 -2 -------- Run | Scr Mat Min Mat Min Exi Min Mat Fac Gar Fac Gar Fac Gar Fac Gar Fac Gar Fac Gar Fac Gar Res Gar Res Gar Res Gar Res Total Allies 218 | . . . . . . . . . 9 1 7 . 12 . 13 3 21 2 19 6 8 21 10 7 31 25 21 2 Largest Group 31 | . . . . . . . . . 8 9 13 13 15 15 22 25 31 30 7 8 9 14 11 12 23 25 9 9 Highest-Rated Group 1276 | . . . . . . . . . 144 173 300 300 418 417 741 836 990 941 316 473 478 935 490 596 1216 1276 653 607 Highest-Rated Ally 178 | . . . . . . . . . 32 32 40 40 85 40 85 85 85 85 85 116 65 137 116 116 116 178 178 178 Total Orders 239 | . . . . . . . . . 9 4 11 2 12 2 19 7 39 5 15 9 5 16 18 6 21 17 16 6 STAY 150 | . . . . . . . . . 7 2 8 1 8 1 12 3 22 2 9 5 4 10 13 3 15 10 12 3 ROAM 1 | . . . . . . . . . . . . . . . . . 1 . . . . . . . . . . . FOLLOW 88 | . . . . . . . . . 2 2 3 1 4 1 7 4 16 3 6 4 1 6 5 3 6 7 4 3 Ally Attacks 1172 | . . . . . . . . . 2 10 32 94 12 27 20 27 46 52 49 54 26 128 34 49 65 288 91 66 Total Damage 35643 | . . . . . . . . . 18 307 513 1541 325 1023 331 813 646 988 974 2065 1518 5084 1365 992 1830 10852 2294 2164 Kills 232 | . . . . . . . . . 1 2 5 15 5 6 4 6 7 7 8 14 12 36 8 5 8 49 18 16 Allies Corrupted 19 | . . . . . . . . . . . . . . . . . . 9 2 . . 3 . . . 3 1 1 Allies Melted . | . . . . . . . . . . . . . . . . . . . . . . . . . . . . . Field Lobotomies 5 | . . . . . . . . . . . . . 1 . 1 . . . 2 . . . . . . . 1 . Intel | -11 -10 -10 -9 -9 -9 -8 -8 -7 -7 -7 -7 -6 -6 -5 -5 -5 -5 -4 -4 -4 -4 -3 -3 -3 -3 -2 -2 -2 ------- Run | Scr Mat Min Mat Min Exi Min Mat Fac Gar Fac Gar Fac Gar Fac Gar Fac Gar Fac Gar Fac Gar Res Gar Res Gar Res Gar Res Robot Analysis Total 12 | . 3 . 2 . . . . 7 . . . . . . . . . . . . . . . . . . . . Derelict Logs Recovered 2 | . . 1 . 1 . . . . . . . . . . . . . . . . . . . . . . . . Drone Launches . | . . . . . . . . . . . . . . . . . . . . . . . . . . . . . Drone Recoveries . | . . . . . . . . . . . . . . . . . . . . . . . . . . . . . Exploration | -11 -10 -10 -9 -9 -9 -8 -8 -7 -7 -7 -7 -6 -6 -5 -5 -5 -5 -4 -4 -4 -4 -3 -3 -3 -3 -2 -2 -2 ------------- Run | Scr Mat Min Mat Min Exi Min Mat Fac Gar Fac Gar Fac Gar Fac Gar Fac Gar Fac Gar Fac Gar Res Gar Res Gar Res Gar Res Turns Passed 68829 | 106 2786 2638 558 909 638 1204 1810 4925 4499 338 5217 218 6119 144 6552 367 4955 772 2877 530 1723 1694 4604 287 5154 2557 4167 481 Spaces Moved 23010 | 64 911 634 282 590 402 497 619 1743 1801 123 1637 59 1501 42 1811 135 1820 295 1072 194 669 600 1284 100 1836 694 1451 144 Core 67 | 13 . . . . . . . 4 . . 5 . 28 . . . . . . 1 . . 16 . . . . . Treads 13308 | 51 911 624 . . . . . . . . 1024 59 697 . . 118 1820 295 1072 193 669 561 989 100 1836 694 1451 144 Legs 2646 | . . . . . . . . . . . . . 776 42 1811 17 . . . . . . . . . . . . Wheels 6989 | . . 10 282 590 402 497 619 1739 1801 123 608 . . . . . . . . . . 39 279 . . . . . Hover . | . . . . . . . . . . . . . . . . . . . . . . . . . . . . . Flight . | . . . . . . . . . . . . . . . . . . . . . . . . . . . . . Fastest Speed 50 | 50 160 135 130 130 90 210 210 100 205 220 160 320 260 330 330 240 240 240 240 240 240 170 170 240 240 225 225 305 Average Speed 261 | 140 262 317 136 137 152 210 230 228 211 220 301 320 343 330 330 251 240 246 247 250 240 235 335 253 255 294 242 305 Slowest Speed 3500 | 160 480 320 175 175 210 210 410 3500 220 220 515 320 1600 330 330 330 240 320 320 2250 240 240 2650 320 560 330 305 305 Overloaded Moves . | . . . . . . . . . . . . . . . . . . . . . . . . . . . . . Propulsion Burnouts . | . . . . . . . . . . . . . . . . . . . . . . . . . . . . . Robots Hopped . | . . . . . . . . . . . . . . . . . . . . . . . . . . . . . Cave-ins Triggered 4 | . . 1 1 . . . . 1 . . . . . . . . . . . . . 1 . . . . . . Exploration Rate (%) 52 | 4 92 100 35 99 71 91 41 45 84 4 93 2 83 1 76 4 84 12 85 8 75 10 90 5 87 31 99 9 Regions Visited 28 Branch Regions 4 Pre-discovered Areas 5 | . 2 1 . 1 1 . . . . . . . . . . . . . . . . . . . . . . . Known Exits Taken 10 | . . . . . . . . 1 . 1 . 1 . 1 . 1 . 1 . 1 . 1 . 1 . 1 . . Unknown Exits Taken 8 | 1 1 1 1 1 1 1 1 . . . . . . . . . . . . . . . . . . . . . Scrap Searched 8 | . . 2 . 4 . 2 . . . . . . . . . . . . . . . . . . . . . . Spaces Dug 253 | . 2 80 . . . . 1 57 18 . . . . 1 17 3 28 1 10 . . 12 7 6 3 7 . . Terrain Destroyed 761 | . 6 128 60 . . . 1 74 25 . 78 . . 1 23 3 28 6 22 . . 13 69 6 14 46 158 . Melee 115 | . . . . . . . 1 50 18 . . . . 1 14 3 28 . . . . . . . . . . . Projectile 75 | . 6 17 . . . . . 1 . . . . . . . . . 1 . . . 12 2 . 8 19 9 . AOE 570 | . . 111 60 . . . . 23 7 . 78 . . . 9 . . 5 22 . . . 67 6 6 27 149 . Terrain Rammed . | . . . . . . . . . . . . . . . . . . . . . . . . . . . . . Walls Destroyed . | . . . . . . . . . . . . . . . . . . . . . . . . . . . . . Machines Disabled . | . . . . . . . . . . . . . . . . . . . . . . . . . . . . . Actions | -11 -10 -10 -9 -9 -9 -8 -8 -7 -7 -7 -7 -6 -6 -5 -5 -5 -5 -4 -4 -4 -4 -3 -3 -3 -3 -2 -2 -2 --------- Run | Scr Mat Min Mat Min Exi Min Mat Fac Gar Fac Gar Fac Gar Fac Gar Fac Gar Fac Gar Fac Gar Res Gar Res Gar Res Gar Res Total 30005 | 78 1160 1178 398 650 430 616 918 2352 2340 186 1886 89 2377 47 2293 153 2260 333 1259 232 776 820 1528 128 2188 1138 2019 173 Wait 4252 | 7 156 486 47 7 . 87 227 288 261 56 93 15 709 2 330 3 293 8 85 12 64 116 112 11 128 268 381 . Move 22977 | 63 910 633 281 589 401 496 618 1742 1799 123 1635 58 1499 41 1809 135 1818 294 1070 194 667 599 1283 99 1834 694 1449 144 Hop . | . . . . . . . . . . . . . . . . . . . . . . . . . . . . . Pick Up 318 | 2 17 10 17 10 25 6 7 67 15 . 32 2 14 1 12 1 8 3 6 . 5 2 17 1 12 10 15 1 Fast Attach 126 | 6 1 2 1 4 1 1 . 11 9 . 7 4 10 . 2 1 4 6 2 2 2 3 6 . 14 18 8 1 Attach 132 | . 3 . 10 3 . 1 5 27 9 . 9 3 11 1 5 . 4 . . 1 . 4 9 . 3 9 15 . Detach 46 | . . . . . . . . 5 4 . 2 4 2 . 2 . 1 . 1 . 2 . 4 . 7 5 7 . Swap 116 | . 5 3 2 3 . . 6 18 10 1 4 . 10 1 15 . 3 3 4 1 1 . 7 2 7 4 5 1 Drop 171 | . . 8 2 11 3 . 3 17 13 . 35 1 6 . 4 2 2 7 5 2 1 3 8 . 12 17 8 1 Fire 1277 | . 68 31 38 22 . 25 51 112 75 6 43 2 62 . 48 8 36 12 66 20 21 86 60 13 141 109 99 23 Melee 183 | . . . . . . . 1 57 25 . . . . 1 26 3 64 . . . . . . . . 4 2 . Ram 1 | . . . . 1 . . . . . . . . . . . . . . . . . . . . . . . . Kick . | . . . . . . . . . . . . . . . . . . . . . . . . . . . . . Crush 13 | . . 5 . . . . . . . . . . . . . . . . . . . 5 . 1 . . . 2 Escape Stasis 377 | . . . . . . . . 8 120 . 26 . 53 . 40 . 26 . 20 . 12 . 22 . 26 . 24 . Rewire 14 | . . . . . . . . . . . . . 1 . . . 1 . . . 1 2 . 1 2 . 6 . Trap 2 | . . . . . . . . . . . . . . . . . . . . . . . . . 2 . . . Miscellaneous . | . . . . . . . . . . . . . . . . . . . . . . . . . . . . . Route ------- -11/Scrapyard -10/Materials (discovered 4 exits: *Mat x3 / [*Min]) -10/Mines (discovered 2 exits: *Mat x2) -9/Materials (discovered 2 exits: *Mat / *Min) -9/Mines (discovered 3 exits: *Mat x2 / *Exi) -9/Exiles (discovered 2 exits: [*Min x2]) -8/Mines -8/Materials -7/Factory (discovered 3 exits: *Fac / [*Sto] / Gar) -7/Garrison (discovered 3 exits: *Fac x3) -7/Factory -7/Garrison (discovered 3 exits: *Fac x3) -6/Factory -6/Garrison (discovered 3 exits: *Fac x3) -5/Factory -5/Garrison (discovered 3 exits: *Fac x3) -5/Factory -5/Garrison (discovered 3 exits: *Fac x3) -4/Factory -4/Garrison (discovered 3 exits: *Fac x3) -4/Factory -4/Garrison (discovered 3 exits: *Res x3) -3/Research -3/Garrison (discovered 3 exits: *Res x3) -3/Research -3/Garrison (discovered 3 exits: *Res x3) -2/Research (discovered 4 exits: [*Acc x2] / [*Tes] / Gar) -2/Garrison (discovered 3 exits: *Res x3) -2/Research History --------- Turn | Location | Event 7 | -11/Scrapyard | Discovered new exit (range 15) 107 | -11/Scrapyard | Entered Materials 166 | -10/Materials | Discovered new exit (range 7) 317 | -10/Materials | Build established: Mutant 403 | -10/Materials | Discovered new exit (range 8) 519 | -10/Materials | Discovered new exit (range 8) 784 | -10/Materials | Discovered new exit (range 16) 819 | -10/Materials | Central database locked down 2893 | -10/Materials | Entered Mines 2900 | -10/Mines | Received a Rocket Launcher from a helpful Derelict 2924 | -10/Mines | Assembled infested the area 3993 | -10/Mines | Discovered new exit (range 4) 4243 | -10/Mines | Learned location of Zion (-6) 4273 | -10/Mines | Discovered new exit (range 5) 4818 | -10/Mines | Found a hidden stash of uninstalled traps 5463 | -10/Mines | Crushed by falling debris 5531 | -10/Mines | Entered Materials 5531 | -9/Materials | Evolved 2 slots: Utility x1, Weapon x1 5821 | -9/Materials | Crushed by falling debris 5913 | -9/Materials | Discovered new exit (range 15) 6046 | -9/Materials | Discovered new exit (range 7) 6089 | -9/Materials | Entered Mines 6104 | -9/Mines | Joined a pair of Derelicts in attacking an 0b10 outpost 6212 | -9/Mines | Deemed a non-threat by the Exiles lab entrance 6212 | -9/Mines | Discovered new exit (range 6) 6227 | -9/Mines | Discovered new exit (range 16) 6246 | -9/Mines | Learned 2 Materials zone layouts 6333 | -9/Mines | Discovered new exit (range 9) 6529 | -9/Mines | Core integrity fell below 50% 6547 | -9/Mines | Learned location of Storage (-7) 6927 | -9/Mines | Build established: Gunner 6998 | -9/Mines | Entered Exiles 7019 | -9/Exiles | Discovered new exit (range 15) 7035 | -9/Exiles | Met 8R-AWN 7054 | -9/Exiles | Met EX-HEX 7106 | -9/Exiles | Met EX-DEC 7224 | -9/Exiles | Met EX-BIN 7243 | -9/Exiles | Aligned with FarCom system 7244 | -9/Exiles | Given EX-Vault access code 7275 | -9/Exiles | Opened EX-Vault 7285 | -9/Exiles | Found Field Lobotomy Kit 7312 | -9/Exiles | Warned to stay clear of 0b10 Research branches 7620 | -9/Exiles | Discovered new exit (range 10) 7636 | -9/Exiles | Left Exiles lab with Field Lobotomy Kit 7636 | -9/Exiles | Entered Mines 8165 | -8/Mines | Build established: Hauler-Skirmisher 8815 | -8/Mines | Discovered new exit (range 13) 8840 | -8/Mines | Entered Materials 8840 | -8/Materials | Evolved 2 slots: Utility x2 9156 | -8/Materials | Build established: Hauler-Tank 10514 | -8/Materials | Discovered new exit (range 15) 10650 | -8/Materials | Entered Factory 10650 | -7/Factory | Evolved 2 slots: Utility x2 10673 | -7/Factory | Lost 4 parts (1p1n2w) 10949 | -7/Factory | Build established: Hauler-Skirmisher 11059 | -7/Factory | Garrison activated, responded to threat 11850 | -7/Factory | Fabricated Remote Datajack? 12016 | -7/Factory | Build established: Hauler-Mutant 12563 | -7/Factory | Lost 5 parts (2u3w) 12990 | -7/Factory | Discovered new exit (range 8) 13892 | -7/Factory | Crushed by falling debris 14337 | -7/Factory | Discovered new exit (range 16) 15020 | -7/Factory | Build established: Hauler-Skirmisher 15461 | -7/Factory | Fabricated System Restoration Module? 15559 | -7/Factory | Identified exit to Garrison 15575 | -7/Factory | Entered Garrison 15659 | -7/Garrison | Triggered checkpoint 15670 | -7/Garrison | Triggered checkpoint 15713 | -7/Garrison | Destroyed 7 combat bots 16083 | -7/Garrison | Build established: Hauler-Tank 16101 | -7/Garrison | Discovered new exit (range 14) 16334 | -7/Garrison | Discovered new exit (range 15) 16489 | -7/Garrison | Triggered checkpoint 16584 | -7/Garrison | Discovered new exit (range 9) 16628 | -7/Garrison | Installed Relay Interface Framework 16790 | -7/Garrison | Triggered checkpoint 16820 | -7/Garrison | Garrison Relay disabled 16944 | -7/Garrison | Triggered checkpoint 16945 | -7/Garrison | Core integrity fell below 50% 17119 | -7/Garrison | Build established: Bothacker-Mutant 17497 | -7/Garrison | Triggered checkpoint 17542 | -7/Garrison | Garrison Relay disabled 17988 | -7/Garrison | Triggered checkpoint 18016 | -7/Garrison | Garrison Relay disabled 18852 | -7/Garrison | Triggered checkpoint 19478 | -7/Garrison | Garrison Relay disabled 20074 | -7/Garrison | Entered Factory 20074 | -7/Factory | Accompanied by 8 allies 20410 | -7/Factory | Identified exit to Garrison 20412 | -7/Factory | Entered Garrison 20412 | -7/Garrison | Accompanied by 8 allies 20531 | -7/Garrison | Phase Generator disabled 20714 | -7/Garrison | Triggered checkpoint 21063 | -7/Garrison | Garrison Relay disabled 21369 | -7/Garrison | Lost 3 parts (1p1n1w) 21626 | -7/Garrison | Build established: Bothacker-Skirmisher 22088 | -7/Garrison | Build established: Commander-Mutant 22308 | -7/Garrison | Triggered checkpoint 22348 | -7/Garrison | Lost 4 parts (1n1u2w) 22713 | -7/Garrison | Triggered checkpoint 22769 | -7/Garrison | Build established: Bothacker-Mutant 23013 | -7/Garrison | Discovered new exit (range 8) 23051 | -7/Garrison | Expanded RIF knowledge: Alert ID Control 23146 | -7/Garrison | Triggered checkpoint 23285 | -7/Garrison | Garrison Relay disabled 23744 | -7/Garrison | Discovered new exit (range 8) 23912 | -7/Garrison | Triggered checkpoint 24553 | -7/Garrison | Discovered new exit (range 8) 25119 | -7/Garrison | Garrison Relay disabled 25629 | -7/Garrison | Entered Factory 25629 | -6/Factory | Accompanied by 13 allies 25629 | -6/Factory | Evolved 2 slots: Power x1, Utility x1 25672 | -6/Factory | Garrison activated, responded to threat 25774 | -6/Factory | P-60 Hacker assimilated allied Guardian 4e 25834 | -6/Factory | Identified exit to Garrison 25847 | -6/Factory | Entered Garrison 25847 | -6/Garrison | Accompanied by 9 allies 26316 | -6/Garrison | Triggered checkpoint 26887 | -6/Garrison | Triggered checkpoint 27744 | -6/Garrison | Spotted B-75 Beast 27756 | -6/Garrison | Assimilated B-75 Beast with FLK Orb 27763 | -6/Garrison | Triggered checkpoint 28046 | -6/Garrison | Lost 5 parts (2p1u2w) 28294 | -6/Garrison | Triggered checkpoint 28475 | -6/Garrison | Discovered new exit (range 10) 28562 | -6/Garrison | Triggered checkpoint 28594 | -6/Garrison | Build established: Bothacker-Skirmisher 28596 | -6/Garrison | Garrison Relay disabled 28896 | -6/Garrison | Lost 6 parts (2p2n1u1w) 29622 | -6/Garrison | Triggered checkpoint 29921 | -6/Garrison | Build established: Commander-Mutant 30022 | -6/Garrison | Garrison Relay disabled 30106 | -6/Garrison | Discovered new exit (range 15) 30396 | -6/Garrison | Discovered new exit (range 8) 30439 | -6/Garrison | Expanded RIF knowledge: Hotswap 30502 | -6/Garrison | Triggered checkpoint 30541 | -6/Garrison | Garrison Relay disabled 30729 | -6/Garrison | Build established: Bothacker-Mutant 31333 | -6/Garrison | Garrison Relay disabled 31966 | -6/Garrison | Entered Factory 31966 | -5/Factory | Accompanied by 15 allies 31966 | -5/Factory | Evolved 2 slots: Utility x2 32022 | -5/Factory | Garrison activated, responded to threat 32027 | -5/Factory | Identified exit to Garrison 32110 | -5/Factory | Entered Garrison 32110 | -5/Garrison | Accompanied by 10 allies 32385 | -5/Garrison | Triggered checkpoint 32593 | -5/Garrison | Garrison Relay disabled 33798 | -5/Garrison | Assimilated B-75 Beast with FLK Orb 33852 | -5/Garrison | Triggered checkpoint 34025 | -5/Garrison | Triggered checkpoint 34129 | -5/Garrison | Discovered new exit (range 8) 34388 | -5/Garrison | Discovered new exit (range 8) 34596 | -5/Garrison | Triggered checkpoint 34746 | -5/Garrison | Triggered checkpoint 34773 | -5/Garrison | Discovered new exit (range 10) 34829 | -5/Garrison | Expanded RIF knowledge: Autoassimilate 34970 | -5/Garrison | Triggered checkpoint 35120 | -5/Garrison | Build established: Botlord-Mutant 35142 | -5/Garrison | Garrison Relay disabled 35392 | -5/Garrison | Triggered checkpoint 35994 | -5/Garrison | Garrison Relay disabled 36224 | -5/Garrison | Triggered checkpoint 36907 | -5/Garrison | Triggered checkpoint 36946 | -5/Garrison | Garrison Relay disabled 38662 | -5/Garrison | Entered Factory 38662 | -5/Factory | Accompanied by 22 allies 39029 | -5/Factory | Identified exit to Garrison 39029 | -5/Factory | Entered Garrison 39029 | -5/Garrison | Accompanied by 23 allies 39343 | -5/Garrison | Triggered checkpoint 39395 | -5/Garrison | Garrison Relay disabled 40132 | -5/Garrison | Triggered checkpoint 40462 | -5/Garrison | Build established: Commander-Mutant 40692 | -5/Garrison | Discovered new exit (range 10) 40756 | -5/Garrison | Triggered checkpoint 40915 | -5/Garrison | Garrison Relay disabled 41506 | -5/Garrison | Triggered checkpoint 41663 | -5/Garrison | Discovered new exit (range 8) 41692 | -5/Garrison | Expanded RIF knowledge: Autooverride 41807 | -5/Garrison | Triggered checkpoint 42193 | -5/Garrison | Discovered new exit (range 8) 42237 | -5/Garrison | Triggered checkpoint 42378 | -5/Garrison | Garrison Relay disabled 42600 | -5/Garrison | Triggered checkpoint 42633 | -5/Garrison | Garrison Relay disabled 43864 | -5/Garrison | Build established: Botlord-Mutant 43984 | -5/Garrison | Entered Factory 43984 | -4/Factory | Accompanied by 30 allies 43984 | -4/Factory | Evolved 2 slots: Utility x2 44105 | -4/Factory | Noticed a derelict Sapper rigging charges 44736 | -4/Factory | Identified exit to Garrison 44756 | -4/Factory | Entered Garrison 44756 | -4/Garrison | Accompanied by 2 allies 44832 | -4/Garrison | Triggered checkpoint 44901 | -4/Garrison | Garrison Relay disabled 45074 | -4/Garrison | P-70 Sage assimilated allied Virus 7c 45077 | -4/Garrison | Assimilated P-70 Sage with FLK Orb 45080 | -4/Garrison | Assimilated P-70 Sage with FLK Orb 45278 | -4/Garrison | Triggered checkpoint 45334 | -4/Garrison | Triggered checkpoint 45463 | -4/Garrison | Discovered new exit (range 8) 45499 | -4/Garrison | Expanded RIF knowledge: Coupler Efficiency 45562 | -4/Garrison | Triggered checkpoint 45592 | -4/Garrison | Garrison Relay disabled 45687 | -4/Garrison | Triggered checkpoint 45992 | -4/Garrison | Triggered checkpoint 46214 | -4/Garrison | Triggered checkpoint 46467 | -4/Garrison | Garrison Relay disabled 46507 | -4/Garrison | Discovered new exit (range 10) 46716 | -4/Garrison | Discovered new exit (range 14) 46748 | -4/Garrison | Triggered checkpoint 46791 | -4/Garrison | Garrison Relay disabled 47633 | -4/Garrison | Entered Factory 47633 | -4/Factory | Accompanied by 7 allies 48089 | -4/Factory | Spotted B-86 Titan 48094 | -4/Factory | Assimilated Titan 7a with formatsys_high 48130 | -4/Factory | Garrison activated, responded to threat 48154 | -4/Factory | Identified exit to Garrison 48163 | -4/Factory | Entered Garrison 48163 | -4/Garrison | Accompanied by 5 allies 48214 | -4/Garrison | Triggered checkpoint 48241 | -4/Garrison | Garrison Relay disabled 48336 | -4/Garrison | Triggered checkpoint 48482 | -4/Garrison | Triggered checkpoint 48644 | -4/Garrison | Triggered checkpoint 48654 | -4/Garrison | Triggered checkpoint 48723 | -4/Garrison | Discovered new exit (range 9) 48764 | -4/Garrison | Expanded RIF knowledge: Coupler Efficiency 48974 | -4/Garrison | Garrison Relay disabled 49182 | -4/Garrison | Discovered new exit (range 10) 49246 | -4/Garrison | Triggered checkpoint 49271 | -4/Garrison | Garrison Relay disabled 49479 | -4/Garrison | Discovered new exit (range 14) 49886 | -4/Garrison | Entered Research 49886 | -3/Research | Accompanied by 8 allies 49886 | -3/Research | Evolved 2 slots: Utility x2 51224 | -3/Research | P-80 Master assimilated allied Sentinel 7e 51225 | -3/Research | P-80 Master assimilated allied Sentinel 7f 51238 | -3/Research | P-80 Master assimilated allied Assassin 7d 51354 | -3/Research | Spotted B-86 Titan 51357 | -3/Research | Assimilated Titan 8a with formatsys_high 51452 | -3/Research | Garrison activated, responded to threat 51480 | -3/Research | Crushed by falling debris 51494 | -3/Research | Identified exit to Garrison 51580 | -3/Research | Entered Garrison 51580 | -3/Garrison | Accompanied by 6 allies 51809 | -3/Garrison | System corruption reached 10% 51867 | -3/Garrison | Spotted B-86 Titan 51883 | -3/Garrison | Assimilated Titan 8b with formatsys_high 52249 | -3/Garrison | Discovered new exit (range 14) 52307 | -3/Garrison | Expanded RIF knowledge: Program Shield 53003 | -3/Garrison | Triggered checkpoint 53290 | -3/Garrison | Triggered checkpoint 53428 | -3/Garrison | Discovered new exit (range 10) 53546 | -3/Garrison | Triggered checkpoint 53616 | -3/Garrison | Garrison Relay disabled 53908 | -3/Garrison | Triggered checkpoint 53936 | -3/Garrison | Garrison Relay disabled 54124 | -3/Garrison | Triggered checkpoint 54477 | -3/Garrison | Discovered new exit (range 13) 54844 | -3/Garrison | Triggered checkpoint 55074 | -3/Garrison | Garrison Relay disabled 55408 | -3/Garrison | Garrison Relay disabled 55577 | -3/Garrison | Triggered checkpoint 56184 | -3/Garrison | Entered Research 56184 | -3/Research | Accompanied by 10 allies 56426 | -3/Research | Identified exit to Garrison 56471 | -3/Research | Entered Garrison 56471 | -3/Garrison | Accompanied by 12 allies 56541 | -3/Garrison | Destroyed Titan 8a 56594 | -3/Garrison | Triggered checkpoint 56630 | -3/Garrison | Garrison Relay disabled 56765 | -3/Garrison | Spotted B-86 Titan 56871 | -3/Garrison | Triggered checkpoint 56871 | -3/Garrison | Triggered checkpoint 56883 | -3/Garrison | Triggered checkpoint 56987 | -3/Garrison | Allies destroyed B-86 Titan 57254 | -3/Garrison | Discovered new exit (range 14) 57806 | -3/Garrison | Discovered new exit (range 8) 57884 | -3/Garrison | Triggered checkpoint 57955 | -3/Garrison | Garrison Relay disabled 58084 | -3/Garrison | Triggered checkpoint 58296 | -3/Garrison | Discovered new exit (range 15) 58342 | -3/Garrison | Expanded RIF knowledge: Threat Obfuscation 58412 | -3/Garrison | Triggered checkpoint 58474 | -3/Garrison | Garrison Relay disabled 60144 | -3/Garrison | Triggered checkpoint 60193 | -3/Garrison | Garrison Relay disabled 61625 | -3/Garrison | Entered Research 61625 | -2/Research | Accompanied by 23 allies 61625 | -2/Research | Evolved 2 slots: Utility x2 61801 | -2/Research | Spotted B-90 Cyclops 61832 | -2/Research | Allies destroyed B-90 Cyclops 62194 | -2/Research | Garrison activated, responded to threat 62354 | -2/Research | Found Mni. Smartbomb Launcher 62388 | -2/Research | Identified exit to Garrison 62571 | -2/Research | Discovered new exit (range 11) 62934 | -2/Research | Discovered new exit (range 9) 64035 | -2/Research | Discovered new exit (range 13) 64088 | -2/Research | Lost 4 parts (1p1n1u1w) 64182 | -2/Research | Identified exit to Garrison 64182 | -2/Research | Entered Garrison 64182 | -2/Garrison | Accompanied by 2 allies 64240 | -2/Garrison | Triggered checkpoint 64352 | -2/Garrison | Garrison Relay disabled 64772 | -2/Garrison | Phase Generator disabled 64878 | -2/Garrison | Triggered checkpoint 64900 | -2/Garrison | Spotted B-90 Cyclops 65113 | -2/Garrison | Triggered checkpoint 65124 | -2/Garrison | Assimilated B-90 Cyclops with FLK Orb 65232 | -2/Garrison | Triggered checkpoint 65407 | -2/Garrison | Discovered new exit (range 16) 65510 | -2/Garrison | Garrison Relay disabled 65600 | -2/Garrison | Triggered checkpoint 65720 | -2/Garrison | Triggered checkpoint 65821 | -2/Garrison | Discovered new exit (range 11) 65855 | -2/Garrison | Expanded RIF knowledge: Threat Obfuscation 66391 | -2/Garrison | Garrison Relay disabled 66567 | -2/Garrison | Discovered new exit (range 5) 66817 | -2/Garrison | Triggered checkpoint 67558 | -2/Garrison | Triggered checkpoint 67954 | -2/Garrison | Garrison Relay disabled 68349 | -2/Garrison | Entered Research 68349 | -2/Research | Accompanied by 9 allies 68599 | -2/Research | First assault squad dispatched 68804 | -2/Research | Cargo convoy interrupted 68805 | -2/Research | Spotted Executioner 68805 | -2/Research | Spotted Executioner 68816 | -2/Research | P-80 Master assimilated allied Archangel 9a 68830 | -2/Research | System corruption reached 10% 68830 | -2/Research | Self-destructed Last Messages --------------- 68826_ Penetrated by Slug. 68826_ Lgt. Antimatter Reactor destroyed. 68826_ Lgt. Quantum Reactor destroyed. 68826_ Penetrated by Slug. 68827_ U-05 Engineer lays Concrete. 68827_ P-80 Master repels hacking attempt. 68828_ R-10 Processor collects Com. Wheel. 68828_ K-01 Serf collects debris. 68828_ Slug penetrates Wall. 68828_ Penetrated by Slug. 68829_ U-05 Engineer lays Concrete. 68829_ Imp. Remote Datajack destroyed. 68829_ U-05 Engineer builds a Wall. 68829_ Penetrated by Slug. 68829_ Slug penetrates Wall. 68829_ Penetrated by Slug. 68829_ Cld. Proton Cannon destroyed. 68829_ Slug penetrates Wall. 68829_ Slug penetrates Terminal. 68830_ U-05 Engineer lays Concrete. Map ----- +----------------------------------------------------+ | ######???????????????????????????????????????????? | | ?????????????????????????????????????????? | | #????????????????????????????????????????????????? | | ?????????????????????????????????????????????????? | | ?????????????????????????????????????????????????? | | ######???????????????????????????????????????????? | | #???????????????????????????????????????????? | | ### ##??????????????????????????????????????????? | | #???????????#??????????????????????????????? | | #?????????# ?????????????????????????????? | | #??######+# ?????????????????????????????? | | #? # ????????????????????????????? | | #? ] # ????????????????"""?????????? | | # #? ???????????????"""F"????????? | | # #? ##############""" "????????? | | + """" #?? # ^ %"?????????? | | ## # """" #?? #^ ??????????? | | ?# # """" #??? ; %" ??????????? | | ?# #? """" ?????i/ % *i""" ???? | | ?# #?########????? ; hpE%""" ^w ??? | | ?# # = #??????; !!!p """ ]!! ??? | | ?# # ######## !%%p i u]! ?? | | ?# + """ # !! !u! h % ]! ?? | | ?# # """ # ![!p! ! E ?? | | ?# # """ # !===! "" ?? | | ?# #? # !!=%@]! """"" ???? | | ?# #? # ;[;!!=##########?????#???????? | | ?# #??#####;; [ ##=!!!! #??????????????????? | | # ######;;;; % =#; !! #??????????????????? | | + = % %;;=[ = #??????????????????? | | # [%=% % % ;; =! #??????????????????? | | # %!%=% % % % %%R%%""" #??????????????????? | | ?# %[%*%=% ku ##![""" #??????????????????? | | ?# ##########+##+##*!""" #??????????????????? | | ?# #?????# =*!# ! #??????????????????? | | ?# #?????# # #??????????????????? | | ?# #?????# [ ##########??????????????????? | | ?# #?????# ! #???????????????????????????? | | ?# #?????# #???????????????????????????? | | ?# #?????# #???????????????????????????? | | ?# #?????# #???????????????????????????? | | ?# #?????# = #???????????????????????????? | | ?# #?????+ #???????????????????????????? | | ?+ +?????#####+####???????????????????????????? | | ?# %#??????????????????????????????????????????? | | ?# #??????????????????????????????????????????? | | ?# #??????????????????????????????????????????? | | ?# #??????????????????????????????????????????? | | ?# #??????????????????????????????????????????? | | ?# #??????????????????????????????????????????? | +----------------------------------------------------+ Best States ------------- Heat Dissipation 96 Coolant Potential 100 Energy Generation 51 Energy Capacity 540 Matter Stores 500 Matter Capacity 500 Sight Range 20 Terrain Scan Range 20 Terrain Scan Density 85 EM Shielding 5 Armor Coverage 825 Resistance: TH 15 Resistance: EM 20 Propulsion Shielding 66 Phase Shifting 10 Evasion (%) 50 Targeting Accuracy 8 Target Analysis 6 Recoil Reduction 2 Offensive Hacking 10 Defensive Hacking 40 Relay Coupler Types 10 Relay Coupler Value 335 Authchip Count 1 Item Schematics ----------------- Huge Storage Unit | -10/Materials | Hacked Structural Scanner | -9/Materials | Scanalyzed Remote Datajack | -7/Factory | Hacked System Restoration Module | -7/Factory | Hacked Imp. Remote Datajack | -7/Factory | Scanalyzed Robot Schematics ------------------ L-41 Fighter | -7/Factory | Hacked Fabricated ------------ Remote Datajack | x1 | -7/Factory System Restoration Module | x2 | -7/Factory Alien Tech Used ----------------- None Achievements -------------- Hehehe Challenges ------------ None Game ------ Seed FusionBoreTendrils Manual? 0 Play Time 04:05:08 Cumulative 206.3 hours Start 2022.03.13 @ 08:46:44 End 2022.03.14 @ 10:21:00 Sessions 7 Manual Loads 0 Difficulty Rogue Special Mode None Game No. 307 Rogue 285 Adventurer 4 Explorer 18 Win Type - Total 10 Types 8/0/0/2/0/0/0/0/0 Lore% 69 Gallery% 86 Achievement% 70 Wizard Run 0 Options --------- ASCII 0 Keyboard 1 Movement Numpad Keybinds 0 Fullscreen 1 Font 18/SmallcapsGlow Map View 76x50 Tactical HUD 1 Map Filters NONE Filters NONE Steam 1 RUN: d1a924f0-1786-4621-908c-7afff462193e